fUST/lending_fUST_20250716
["ID","MTS","AMOUNT","RATE_DAILY","PERIOD"]
[372417660,1752636640796,-1597.64,0.00021432,2]
[372417661,1752636640806,-604.57,0.00021432,2]
[372417662,1752636640816,-805.45,0.00021432,2]
[372417663,1752636640825,-460.0,0.00021432,2]
[372417664,1752636640835,-460.0,0.00021432,2]
[372417665,1752636640847,-577.36,0.00021432,2]
[372417666,1752636640857,-516.09,0.00021432,2]
[372417667,1752636640868,-460.0,0.00021433,2]
[372417668,1752636640878,-460.0,0.00021433,2]
[372417669,1752636640888,-4999.99,0.00021433,2]
[372417670,1752636640898,-460.0,0.00021436,2]
[372417671,1752636640909,-465.6,0.00021436,2]
[372417672,1752636640919,-460.0,0.00021436,2]
[372417673,1752636640929,-1160.22,0.00021436,2]
[372417674,1752636640938,-460.0,0.00021439,2]
[372417675,1752636640948,-1223.1,0.00021439,2]
[372417676,1752636640958,-460.0,0.00021439,2]
[372417677,1752636640967,-160.0,0.00021625,2]
[372417678,1752636640977,-500.0,0.00021686,2]
[372417679,1752636640987,-523.73,0.00021704,2]
[372417680,1752636640997,-1597.64,0.00021706,2]
[372417681,1752636641006,-604.57,0.00021706,2]
[372417682,1752636641016,-805.45,0.00021706,2]
[372417683,1752636641025,-423.23461409,0.00021706,2]
[372417684,1752636641036,-460.0,0.00021706,2]
[372417685,1752636641046,-577.36,0.00021706,2]
[372417686,1752636641056,-516.09,0.00021706,2]
[372417687,1752636641066,-545.75483823,0.00021707,2]
[372417688,1752636641076,-460.0,0.00021707,2]
[372417689,1752636641086,-4999.99,0.00021707,2]
[372417690,1752636641095,-460.0,0.0002171,2]
[372417691,1752636641105,-465.6,0.0002171,2]
[372417692,1752636641114,-460.0,0.0002171,2]
[372417693,1752636641124,-460.0,0.00021713,2]
[372417694,1752636641134,-1223.1,0.00021713,2]
[372417695,1752636641143,-460.0,0.00021713,2]
[372417696,1752636641154,-733.33082748,0.00021768,2]
[372417697,1752636641165,-625.69355203,0.00021867,2]
[372417698,1752636641175,-500.0,0.00021917,2]
[372417699,1752636641184,-500.0,0.00021917,2]
[372417700,1752636641195,-523.73,0.00021978,2]
[372417701,1752636641205,-1597.64,0.0002198,2]
[372417702,1752636641214,-604.57,0.0002198,2]
[372417703,1752636641224,-805.45,0.0002198,2]
[372417704,1752636641233,-460.0,0.0002198,2]
[372417705,1752636641243,-577.36,0.0002198,2]
[372417706,1752636641252,-516.09,0.0002198,2]
[372417707,1752636641261,-460.0,0.00021981,2]
[372417708,1752636641271,-4999.99,0.00021981,2]
[372417709,1752636641280,-460.0,0.00021984,2]
[372417710,1752636641289,-465.6,0.00021984,2]
[372417711,1752636641299,-460.0,0.00021984,2]
[372417712,1752636641308,-460.0,0.00021987,2]
[372417713,1752636641318,-1223.1,0.00021987,2]
[372417714,1752636641328,-460.0,0.00021987,2]
[372417715,1752636641338,-4137.86,0.00022,7]
[372417716,1752636641347,-159.0,0.00022,2]
[372417717,1752636641357,-168.0,0.00022,2]
[372417718,1752636641367,-151.0,0.00022011,7]
[372417719,1752636641376,-240.0,0.00022173,2]
[372417720,1752636641386,-523.73,0.00022252,2]
[372417721,1752636641396,-1597.64,0.00022254,2]
[372417722,1752636641405,-604.57,0.00022254,2]
[372417723,1752636641417,-805.45,0.00022254,2]
[372417724,1752636641426,-460.0,0.00022254,2]
[372417725,1752636641436,-577.36,0.00022254,2]
[372417726,1752636641445,-516.09,0.00022254,2]
[372417727,1752636641455,-563.96,0.00022255,2]
[372417728,1752636641469,-4999.99,0.00022255,2]
[372417729,1752636641481,-604.19,0.00022258,2]
[372417730,1752636641491,-465.6,0.00022258,2]
[372417731,1752636641500,-460.0,0.00022258,2]
[372417732,1752636641510,-356.26,0.00022261,2]
[372417733,1752636641519,-1223.1,0.00022261,2]
[372417734,1752636641529,-460.0,0.00022261,2]
[372417735,1752636641538,-726.85,0.000223,7]
[372417736,1752636641549,-500.0,0.00022311,2]
[372417737,1752636641558,-500.74551756,0.00022311,2]
[372417738,1752636641567,-523.73,0.00022526,2]
[372417739,1752636641577,-1597.64,0.00022528,2]
[372417740,1752636641587,-604.57,0.00022528,2]
[372417741,1752636641596,-805.45,0.00022528,2]
[372417742,1752636641606,-460.0,0.00022528,2]
[372417743,1752636641615,-577.36,0.00022528,2]
[372417744,1752636641624,-516.09,0.00022528,2]
[372417745,1752636641633,-4999.99,0.00022529,2]
[372417746,1752636641643,-465.6,0.00022532,2]
[372417747,1752636641653,-460.0,0.00022532,2]
[372417748,1752636641663,-1223.1,0.00022535,2]
[372417749,1752636641672,-460.0,0.00022535,2]
[372417750,1752636641682,-500.0,0.0002269,2]
[372417751,1752636641691,-500.0,0.00022718,2]
[372417752,1752636641701,-733.33082748,0.00022775,2]
[372417753,1752636641710,-625.69355203,0.00022777,2]
[372417754,1752636641719,-151.0,0.000228,10]
[372417755,1752636641729,-523.73,0.000228,2]
[372417756,1752636641738,-1597.64,0.00022802,2]
[372417757,1752636641748,-604.57,0.00022802,2]
[372417758,1752636641757,-805.45,0.00022802,2]
[372417759,1752636641767,-320.89580544,0.00022802,2]
[372417760,1752636641776,-577.36,0.00022802,2]
[372417761,1752636641786,-516.09,0.00022802,2]
[372417762,1752636641795,-4999.99,0.00022803,2]
[372417763,1752636641805,-465.6,0.00022806,2]
[372417764,1752636641814,-460.0,0.00022806,2]
[372417765,1752636641824,-1223.1,0.00022809,2]
[372417766,1752636641834,-177.21,0.00022809,2]
[372417767,1752636641843,-587.0,0.00022844,2]
[372417768,1752636641853,-506.36238514,0.00022859,2]
[372417769,1752636641862,-151.0,0.00022965,2]
[372417770,1752636641872,-151.0,0.00022965,2]
[372417771,1752636641887,-207.4,0.00022965,2]
[372417772,1752636641899,-175.61442781,0.00022965,2]
[372417773,1752636641908,-151.0,0.00022965,2]
[372417774,1752636641918,-151.0,0.00022965,2]
[372417775,1752636641927,-151.0,0.00022965,2]
[372417776,1752636641936,-151.0,0.00022965,2]
[372417777,1752636641946,-151.0,0.00022965,2]
[372417778,1752636641956,-151.0,0.00022965,2]
[372417779,1752636641965,-151.0,0.00022965,2]
[372417780,1752636641975,-151.0,0.00022965,2]
[372417781,1752636641984,-151.0,0.00022965,2]
[372417782,1752636641994,-151.0,0.00022965,2]
[372417783,1752636642003,-154.9930065,0.00022965,2]
[372417784,1752636642012,-7043.81364026,0.00022965,2]
[372417785,1752636642022,-1463.24868026,0.00023,2]
[372417786,1752636642031,-2055.41,0.00023057,2]
[372417787,1752636642041,-523.73,0.00023074,2]
[372417788,1752636642050,-1597.64,0.00023076,2]
[372417789,1752636642060,-604.57,0.00023076,2]
[372417790,1752636642069,-805.45,0.00023076,2]
[372417791,1752636642079,-577.36,0.00023076,2]
[372417792,1752636642088,-516.09,0.00023076,2]
[372417793,1752636642098,-4999.99,0.00023077,2]
[372417794,1752636642107,-151.0,0.00023078,7]
[372417795,1752636642117,-465.6,0.0002308,2]
[372417796,1752636642126,-460.0,0.0002308,2]
[372417797,1752636642136,-1223.1,0.00023083,2]
[372417798,1752636642145,-771.05,0.000231,2]
[372417799,1752636642155,-230.0,0.00023182,2]
[372417800,1752636642165,-1323.95,0.000232,7]
[372417801,1752636642175,-500.02675209,0.00023238,2]
[372417802,1752636642184,-504.00220653,0.00023266,2]
[372417803,1752636642194,-151.0,0.000233,5]
[372417804,1752636642203,-205.0,0.0002334,2]
[372417805,1752636642212,-523.73,0.00023348,2]
[372417806,1752636642222,-1597.64,0.0002335,2]
[372417807,1752636642231,-604.57,0.0002335,2]
[372417808,1752636642240,-805.45,0.0002335,2]
[372417809,1752636642250,-577.36,0.0002335,2]
[372417810,1752636642259,-516.09,0.0002335,2]
[372417811,1752636642269,-4999.99,0.00023351,2]
[372417812,1752636642279,-151.0,0.00023353,7]
[372417813,1752636642289,-465.6,0.00023354,2]
[372417814,1752636642298,-460.0,0.00023354,2]
[372417815,1752636642308,-1223.1,0.00023357,2]
[372417816,1752636642318,-151.0,0.00023392,7]
[372417817,1752636642327,-194.61,0.0002341,2]
[372417818,1752636642336,-200.0,0.00023561,2]
[372417819,1752636642346,-200.0,0.00023561,2]
[372417820,1752636642355,-200.0,0.00023561,2]
[372417821,1752636642365,-200.0,0.00023561,2]
[372417822,1752636642374,-200.0,0.00023561,2]
[372417823,1752636642385,-200.0,0.00023561,2]
[372417824,1752636642395,-200.0,0.00023561,2]
[372417825,1752636642404,-282.7493984,0.00023561,2]
[372417826,1752636642415,-523.73,0.00023622,2]
[372417827,1752636642424,-1597.64,0.00023624,2]
[372417828,1752636642433,-604.57,0.00023624,2]
[372417829,1752636642443,-805.45,0.00023624,2]
[372417830,1752636642452,-577.36,0.00023624,2]
[372417831,1752636642462,-516.09,0.00023624,2]
[372417832,1752636642474,-4999.99,0.00023625,2]
[372417833,1752636642484,-465.6,0.00023628,2]
[372417834,1752636642494,-460.0,0.00023628,2]
[372417835,1752636642503,-1223.1,0.00023631,2]
[372417836,1752636642514,-205.0,0.0002366,2]
[372417837,1752636642523,-714.90504998,0.00023683,5]
[372417838,1752636642533,-625.69355203,0.00023686,2]
[372417839,1752636642543,-168.0,0.00023689,2]
[372417840,1752636642554,-168.0,0.00023746,2]
[372417841,1752636642564,-151.0,0.00023752,6]
[372417842,1752636642575,-733.33082748,0.00023783,2]
[372417843,1752636642584,-151.0,0.000238,6]
[372417844,1752636642594,-1000.0,0.000238,2]
[372417845,1752636642603,-151.0,0.000238,10]
[372417846,1752636642614,-168.0,0.00023886,2]
[372417847,1752636642623,-478.0,0.00023888,2]
[372417848,1752636642633,-523.73,0.00023896,2]
[372417849,1752636642642,-1597.64,0.00023898,2]
[372417850,1752636642651,-604.57,0.00023898,2]
[372417851,1752636642661,-805.45,0.00023898,2]
[372417852,1752636642671,-577.36,0.00023898,2]
[372417853,1752636642680,-516.09,0.00023898,2]
[372417854,1752636642689,-4999.99,0.00023899,2]
[372417855,1752636642698,-4137.86,0.000239,7]
[372417856,1752636642708,-1796.48365748,0.000239,2]
[372417857,1752636642718,-465.6,0.00023902,2]
[372417858,1752636642727,-157.83538423,0.00023902,2]
[372417859,1752636642737,-1223.1,0.00023905,2]
[372417860,1752636642746,-478.0,0.00023954,2]
[372417861,1752636642755,-205.0,0.0002397,2]
[372417862,1752636642789,-151.0,0.00024,8]
[372417863,1752636642798,-285.40740914,0.00024,7]
[372417864,1752636642808,-520.85416667,0.00024,7]
[372417865,1752636642817,-332.62332807,0.00024,14]
[372417866,1752636642826,-1692.37432593,0.00024,2]
[372417867,1752636642835,-10142.16600894,0.00024,2]
[372417868,1752636642844,-453.52457889,0.00024,2]
[372417869,1752636642853,-161.7848685,0.00024,2]
[372417870,1752636642863,-178.85127462,0.00024,7]
[372417871,1752636642872,-843.0,0.00024,14]
[372417872,1752636642881,-151.0,0.00024002,6]
[372417873,1752636642891,-168.0,0.00024156,2]
[372417874,1752636642900,-523.73,0.0002417,2]
[372417875,1752636642911,-1597.64,0.00024172,2]
[372417876,1752636642921,-604.57,0.00024172,2]
[372417877,1752636642930,-805.45,0.00024172,2]
[372417878,1752636642940,-577.36,0.00024172,2]
[372417879,1752636642949,-516.09,0.00024172,2]
[372417880,1752636642959,-4999.99,0.00024173,2]
[372417881,1752636642968,-465.6,0.00024176,2]
[372417882,1752636642978,-1223.1,0.00024179,2]
[372417883,1752636642987,-151.0,0.00024253,6]
[372417884,1752636642997,-205.0,0.0002428,2]
[372417885,1752636643007,-726.85,0.000243,7]
[372417886,1752636643016,-151.0,0.000243,9]
[372417887,1752636643026,-1000.0,0.000243,2]
[372417888,1752636643036,-162.95973128,0.00024329,2]
[372417889,1752636643046,-162.95973127,0.00024329,2]
[372417890,1752636643056,-162.95973127,0.00024329,2]
[372417891,1752636643066,-215.0738,0.00024334,2]
[372417892,1752636643075,-151.0,0.00024397,7]
[372417893,1752636643085,-151.0,0.000244,10]
[372417894,1752636643094,-598.326818,0.00024401,8]
[372417895,1752636643104,-523.73,0.00024444,2]
[372417896,1752636643114,-1597.64,0.00024446,2]
[372417897,1752636643123,-604.57,0.00024446,2]
[372417898,1752636643132,-805.45,0.00024446,2]
[372417899,1752636643142,-577.36,0.00024446,2]
[372417900,1752636643151,-516.09,0.00024446,2]
[372417901,1752636643162,-4999.99,0.00024447,2]
[372417902,1752636643171,-465.6,0.0002445,2]
[372417903,1752636643180,-1223.1,0.00024453,2]
[372417904,1752636643190,-151.0,0.000245,8]
[372417905,1752636643199,-151.0,0.00024504,7]
[372417906,1752636643208,-205.0,0.0002459,2]
[372417907,1752636643218,-625.69355203,0.00024596,2]
[372417908,1752636643228,-151.0,0.000246,7]
[372417909,1752636643237,-429.1687796,0.0002463,2]
[372417910,1752636643247,-429.1687796,0.0002463,2]
[372417911,1752636643256,-429.1687796,0.0002463,2]
[372417912,1752636643266,-429.1687796,0.0002463,2]
[372417913,1752636643275,-429.1687796,0.0002463,2]
[372417914,1752636643284,-429.1687796,0.0002463,2]
[372417915,1752636643294,-429.1687796,0.0002463,2]
[372417916,1752636643303,-251142.51199426,0.0002465,2]
[372417917,1752636643313,-63774.28015827,0.00024651,2]
[372417918,1752636643443,-1028.28663893,0.0002171,2]
[372417919,1752636643523,-131.93336107,0.0002171,2]
[372417920,1752636643533,-337.00863893,0.00021984,2]
[372417925,1752636647106,-460.0,0.0001924,2]
[372417926,1752636647117,-460.0,0.00019514,2]
[372417927,1752636647127,-460.0,0.00019788,2]
[372417928,1752636647137,-460.0,0.00020062,2]
[372417929,1752636647146,-460.0,0.00020336,2]
[372417930,1752636647155,-460.0,0.0002061,2]
[372417931,1752636647167,-823.21136107,0.00021984,2]
[372417932,1752636647177,-1160.22,0.00022258,2]
[372417933,1752636647186,-1853.47,0.00022301,10]
[372417934,1752636647196,-1160.22,0.00022532,2]
[372417935,1752636647206,-1160.22,0.00022806,2]
[372417936,1752636647216,-1160.22,0.0002308,2]
[372417937,1752636647226,-1160.22,0.00023354,2]
[372417938,1752636647236,-1160.22,0.00023628,2]
[372417939,1752636647246,-1160.22,0.00023902,2]
[372417940,1752636647256,-1160.22,0.00024176,2]
[372417941,1752636647266,-1160.22,0.0002445,2]
[372417942,1752636647276,-2522.90532011,0.00024651,2]
[372417943,1752636647288,-287.50800003,0.00024651,2]
[372417945,1752636779856,-5000.0,0.00019046,2]
[372417946,1752636779880,-500.0,0.00019236,2]
[372417947,1752636779908,-500.0,0.00019236,2]
[372417948,1752636779931,-500.0,0.00019236,2]
[372417949,1752636779954,-500.0,0.00019236,2]
[372417950,1752636779977,-500.0,0.00019236,2]
[372417951,1752636779999,-500.0,0.00019236,2]
[372417952,1752636780021,-500.0,0.00019236,2]
[372417953,1752636780046,-500.0,0.00019236,2]
[372417954,1752636780068,-449.84942701,0.00019236,2]
[372417955,1752636780089,-500.0,0.00019236,2]
[372417956,1752636780110,-500.0,0.00019236,2]
[372417957,1752636780136,-500.0,0.00019236,2]
[372417958,1752636780160,-477.12288887,0.00019236,2]
[372417959,1752636780182,-500.0,0.00019236,2]
[372417960,1752636780203,-500.0,0.00019236,2]
[372417961,1752636780226,-500.0,0.00019236,2]
[372417962,1752636780249,-500.0,0.00019236,2]
[372417963,1752636780272,-500.0,0.00019236,2]
[372417964,1752636780295,-500.0,0.00019236,2]
[372417965,1752636780317,-500.0,0.00019236,2]
[372417966,1752636780339,-500.0,0.00019236,2]
[372417967,1752636780361,-500.0,0.00019236,2]
[372417968,1752636780387,-175.02768412,0.00019236,2]
[372417970,1752636827744,702.18992037,0.00027397,120]
[372417972,1752636851325,-460.0,0.00019043,2]
[372417975,1752636882258,347.857233,0.00013699,2]
[372417976,1752636903189,6207.19281206,0.00018238,2]
[372417977,1752636903213,3792.80718794,0.00018238,2]
[372417978,1752636964944,109962.79762725,0.00025635,120]
[372417979,1752636976047,5000.0,0.000185,2]
[372417980,1752636992383,5000.0,0.000185,2]
[372417981,1752637011057,5000.0,0.000185,2]
[372417982,1752637028259,5000.0,0.000185,2]
[372417983,1752637045307,5000.0,0.000185,2]
[372417984,1752637062179,5000.0,0.000185,2]
[372417985,1752637077972,5000.0,0.000185,2]
[372417986,1752637095549,1207.19281206,0.000185,2]
[372417987,1752637095572,3792.80718794,0.000185,2]
[372417988,1752637096470,24900.0,0.00018235,2]
[372417989,1752637112568,5000.0,0.000185,2]
[372417990,1752637128881,5000.0,0.000185,2]
[372417992,1752637145363,1307.19281206,0.000185,2]
[372417993,1752637145387,3692.80718794,0.000185,2]
[372417995,1752637162905,5000.0,0.000185,2]
[372417996,1752637180919,5000.0,0.000185,2]
[372417997,1752637196770,5000.0,0.000185,2]
[372417998,1752637213068,5000.0,0.000185,2]
[372417999,1752637228871,5000.0,0.000185,2]
[372418000,1752637244865,5000.0,0.000185,2]
[372418002,1752637260869,5000.0,0.000185,2]
[372418003,1752637277671,1307.19281206,0.000185,2]
[372418004,1752637277709,3692.80718794,0.000185,2]
[372418005,1752637293418,2954.36616775,0.000185,2]
[372418006,1752637386624,2343.91612334,0.000185,2]
[372418009,1752637511740,5000.0,0.000185,2]
[372418010,1752637528449,1472.068238,0.00018022,2]
[372418011,1752637528522,2656.08387666,0.000185,2]
[372418012,1752637536369,-382.34646198,0.00018819,2]
[372418013,1752637536392,-196.84837887,0.00018898,2]
[372418014,1752637536414,-302.72757545,0.000189,2]
[372418015,1752637536435,-1200.0,0.00018997,2]
[372418016,1752637536457,-250.18509506,0.00018998,2]
[372418017,1752637543147,-160.0,0.00018997,2]
[372418018,1752637543169,-49.81490494,0.00018998,2]
[372418019,1752637543191,-300.0,0.00018998,2]
[372418020,1752637543212,-300.0,0.00018998,2]
[372418021,1752637543232,-300.0,0.00018998,2]
[372418022,1752637543254,-300.0,0.00018998,2]
[372418023,1752637543276,-3.19861037,0.00018999,2]
[372418024,1752637626670,-509.77476595,0.00018819,2]
[372418025,1752637626694,-186.45779353,0.00018898,2]
[372418026,1752637626715,-300.0,0.00018997,2]
[372418027,1752637626736,-1200.0,0.00018998,2]
[372418028,1752637626758,-500.0,0.00018998,2]
[372418029,1752637626779,-527.25008012,0.00018998,2]
[372418030,1752637626800,-500.0,0.00018998,2]
[372418031,1752637626820,-500.0,0.00018998,2]
[372418032,1752637626841,-306.38247125,0.00018998,2]
[372418033,1752637626862,-500.0,0.00018998,2]
[372418034,1752637626885,-500.0,0.00018998,2]
[372418035,1752637626905,-500.0,0.00018998,2]
[372418036,1752637626928,-500.0,0.00018998,2]
[372418037,1752637626951,-500.0,0.00018998,2]
[372418038,1752637626974,-500.0,0.00018998,2]
[372418039,1752637626995,-497.93848388,0.00018998,2]
[372418040,1752637627017,-500.0,0.00018998,2]
[372418041,1752637627038,-500.0,0.00018998,2]
[372418042,1752637627058,-500.0,0.00018998,2]
[372418043,1752637627078,-500.0,0.00018998,2]
[372418044,1752637627101,-500.0,0.00018998,2]
[372418045,1752637627124,-133.99408646,0.00018998,2]
[372418046,1752637628087,-32.50715765,0.00018998,2]
[372418047,1752637628111,-500.0,0.00018998,2]
[372418048,1752637628134,-500.0,0.00018998,2]
[372418049,1752637628154,-500.0,0.00018998,2]
[372418050,1752637628177,-500.0,0.00018998,2]
[372418051,1752637628200,-466.55790172,0.00018998,2]
[372418052,1752637628221,-153.9702501,0.00018998,2]
[372418053,1752637628243,-500.0,0.00018998,2]
[372418054,1752637628267,-500.0,0.00018998,2]
[372418055,1752637628290,-178.69173431,0.00018998,2]
[372418056,1752637628312,-500.0,0.00018998,2]
[372418057,1752637628334,-500.0,0.00018998,2]
[372418058,1752637628355,-500.0,0.00018998,2]
[372418059,1752637628375,-500.0,0.00018998,2]
[372418060,1752637628400,-500.0,0.00018998,2]
[372418061,1752637628421,-500.0,0.00018998,2]
[372418062,1752637628444,-500.0,0.00018998,2]
[372418063,1752637628465,-508.96840074,0.00018998,2]
[372418064,1752637628486,-500.0,0.00018998,2]
[372418065,1752637628507,-500.0,0.00018998,2]
[372418066,1752637628533,-500.0,0.00018998,2]
[372418067,1752637628554,-500.0,0.00018998,2]
[372418068,1752637628575,-500.0,0.00018998,2]
[372418069,1752637628596,-500.0,0.00018998,2]
[372418070,1752637628617,-35.80590087,0.00018998,2]
[372418071,1752637646076,-464.19409913,0.00018998,2]
[372418072,1752637646097,-500.0,0.00018998,2]
[372418073,1752637646120,-265.98148121,0.00018998,2]
[372418077,1752637803191,2260.23,0.0001631,2]
[372418078,1752637823386,8505.6603056,0.00018203,2]
[372418112,1752637832063,-155.0,0.00018998,2]
[372418113,1752637832074,-439.0,0.00018998,2]
[372418114,1752637832084,-300.0,0.00018998,2]
[372418115,1752637832093,-300.0,0.00018998,2]
[372418116,1752637832249,-408.74352603,0.00018999,2]
[372418117,1752637832265,-500.0,0.00018999,2]
[372418118,1752637832274,-500.0,0.00018999,2]
[372418119,1752637832284,-500.0,0.00018999,2]
[372418120,1752637832293,-500.0,0.00018999,2]
[372418121,1752637832303,-500.0,0.00018999,2]
[372418122,1752637832312,-166.43760932,0.00018999,2]
[372418123,1752637832322,-194.52969671,0.00018999,2]
[372418124,1752637832333,-305.47030329,0.00018999,2]
[372418125,1752637832342,-500.0,0.00018999,2]
[372418126,1752637832351,-500.0,0.00018999,2]
[372418127,1752637832361,-461.51350699,0.00018999,2]
[372418128,1752637832370,-500.0,0.00018999,2]
[372418129,1752637832380,-500.0,0.00018999,2]
[372418130,1752637832389,-500.0,0.00018999,2]
[372418131,1752637832398,-500.0,0.00018999,2]
[372418132,1752637832408,-499.99999999,0.00018999,2]
[372418133,1752637832418,-46929.0,0.00019,2]
[372418134,1752637832428,-460.0,0.00019178,2]
[372418135,1752637832437,-500.0,0.00019178,2]
[372418136,1752637832447,-500.0,0.00019178,2]
[372418137,1752637832456,-465.67405889,0.00019178,2]
[372418138,1752637832466,-460.0,0.00019178,2]
[372418139,1752637832475,-460.0,0.00019178,2]
[372418140,1752637832484,-460.0,0.00019178,2]
[372418141,1752637832493,-460.0,0.00019178,2]
[372418142,1752637832503,-232.16633728,0.00019178,2]
[372418143,1752637832512,-460.0,0.00019178,2]
[372418144,1752637832521,-459.35636673,0.00019178,2]
[372418145,1752637832530,-460.0,0.00019178,2]
[372418146,1752637832541,-138.57405524,0.00019178,2]
[372418147,1752637832645,-83.48512679,0.00019178,2]
[372418148,1752637832654,-435.26288545,0.00019178,2]
[372418149,1752637832664,-460.0,0.00019178,2]
[372418150,1752637832675,-462.09371623,0.00019178,2]
[372418151,1752637832683,-460.0,0.00019178,2]
[372418152,1752637832693,-460.0,0.00019178,2]
[372418153,1752637832702,-460.0,0.00019178,2]
[372418154,1752637832711,-460.0,0.00019178,2]
[372418155,1752637832721,-460.0,0.00019178,2]
[372418156,1752637832730,-460.0,0.00019178,2]
[372418157,1752637832739,-460.0,0.00019178,2]
[372418158,1752637832749,-460.0,0.00019178,2]
[372418159,1752637832758,-460.0,0.00019178,2]
[372418160,1752637832767,-460.0,0.00019178,2]
[372418161,1752637832776,-460.0,0.00019178,2]
[372418162,1752637832786,-462.76099576,0.00019178,2]
[372418163,1752637832795,-517.80659649,0.00019178,2]
[372418164,1752637832804,-460.0,0.00019178,2]
[372418165,1752637832814,-460.0,0.00019178,2]
[372418166,1752637832827,-460.0,0.00019178,2]
[372418167,1752637832837,-460.0,0.00019178,2]
[372418168,1752637832846,-460.0,0.00019178,2]
[372418169,1752637832856,-460.0,0.00019178,2]
[372418170,1752637832866,-460.0,0.00019178,2]
[372418171,1752637832875,-460.0,0.00019178,2]
[372418172,1752637832885,-460.0,0.00019178,2]
[372418173,1752637832893,-461.04945802,0.00019178,2]
[372418174,1752637832899,-460.0,0.00019178,2]
[372418175,1752637832906,-460.0,0.00019178,2]
[372418176,1752637832913,-460.0,0.00019178,2]
[372418177,1752637832919,-460.0,0.00019178,2]
[372418178,1752637832927,-460.0,0.00019178,2]
[372418179,1752637832933,-1033.44,0.00019178,2]
[372418180,1752637832942,-460.0,0.00019178,2]
[372418181,1752637832948,-460.0,0.00019178,2]
[372418182,1752637832955,-460.0,0.00019178,2]
[372418183,1752637832963,-460.0,0.00019178,2]
[372418184,1752637832971,-460.0,0.00019178,2]
[372418185,1752637832979,-460.0,0.00019178,2]
[372418186,1752637832987,-460.0,0.00019178,2]
[372418187,1752637833002,-461.84865898,0.00019178,2]
[372418188,1752637833012,-162.28079979,0.00019178,2]
[372418189,1752637833022,-182.139944,0.00019178,2]
[372418190,1752637833032,-242.54,0.00019227,3]
[372418191,1752637833042,-298.61,0.00019227,3]
[372418192,1752637833052,-294.35,0.00019227,3]
[372418193,1752637833062,-883.08,0.00019227,3]
[372418194,1752637833072,-460.61684138,0.00019229,2]
[372418195,1752637833081,-460.0,0.0001923,2]
[372418196,1752637833091,-460.0,0.0001923,2]
[372418197,1752637833101,-460.0,0.0001923,2]
[372418198,1752637833111,-460.0,0.0001923,2]
[372418199,1752637833120,-461.95609254,0.0001923,2]
[372418200,1752637833130,-460.0,0.0001923,2]
[372418201,1752637833139,-460.0,0.0001923,2]
[372418202,1752637833149,-460.0,0.0001923,2]
[372418203,1752637833158,-521.4872489,0.0001923,2]
[372418204,1752637833168,-460.0,0.0001923,2]
[372418205,1752637833178,-403.32982664,0.0001923,2]
[372418206,1752637833188,-1131.64,0.0001923,2]
[372418207,1752637833197,-293.57597022,0.0001923,2]
[372418208,1752637833207,-1675.93,0.0001923,2]
[372418209,1752637833217,-3203.95,0.0001923,2]